Workbook

Sheet Gastos
A1: Presupuesto del evento [Nombre del evento]
A2: > Gastos
F4: Calculado | G4: Real
A5: Gastos totales | F5: =SUM(B12,B20,B26,B33,F12,F20,F25) -> 1,145 € | G5: =SUM(C12,C20,C26,C33,G12,G20,G25) -> 395 €
A7: Sitio | B7: Calculado | C7: Real | E7: Refrescos | F7: Calculado | G7: Real
A8: Tarifas de habitación | B8: 500 € | C8: 250 € | E8: Alimentos
A9: Plantilla | B9: 400 € | C9: 50 € | E9: Bebidas
A10: Equipo | E10: Mantelerías
A11: Mesas y sillas | E11: Personal y propinas
A12: Total | B12: =SUBTOTAL(109,[Calculado]) -> 900 € | C12: =SUBTOTAL(109,[Real]) -> 300 € | E12: Total | F12: =SUBTOTAL(109,[Calculado]) -> 0 € | G12: =SUBTOTAL(109,[Real]) -> 0 €
A14: Decoración | B14: Calculado | C14: Real | E14: Programa | F14: Calculado | G14: Real
A15: Flores | B15: 200 € | C15: 50 € | E15: Intérpretes
A16: Velas | E16: Altavoces
A17: Iluminación | E17: Viaje
A18: Globos | E18: Hotel
A19: Papel | E19: Otros
A20: Total | B20: =SUBTOTAL(109,[Calculado]) -> 200 € | C20: =SUBTOTAL(109,[Real]) -> 50 € | E20: Total | F20: =SUBTOTAL(109,[Calculado]) -> 0 € | G20: =SUBTOTAL(109,[Real]) -> 0 €
A22: Publicidad | B22: Calculado | C22: Real | E22: Premios | F22: Calculado | G22: Real
A23: Gráficos | B23: 45 € | C23: 45 € | E23: Cintas/Placas/Trofeos
A24: Fotocopiado/Impresión | E24: Regalos
A25: Franqueo | E25: Total | F25: =SUBTOTAL(109,[Calculado]) -> 0 € | G25: =SUBTOTAL(109,[Real]) -> 0 €
A26: Total | B26: =SUBTOTAL(109,[Calculado]) -> 45 € | C26: =SUBTOTAL(109,[Real]) -> 45 €
A28: Varios | B28: Calculado | C28: Real
A29: Teléfono
A30: Transportes
A31: Artículos de papelería
A32: Servicios de fax
A33: Total | B33: =SUBTOTAL(109,[Calculado]) -> 0 € | C33: =SUBTOTAL(109,[Real]) -> 0 €

Sheet Ingresos
A1: =Gastos!A1 -> Presupuesto del evento [Nombre del evento]
A2: > Ingresos
E4: Calculado | F4: Real
A5: Ingresos totales | E5: =SUM(E12,E19,E26,E34) -> 1,936 € | F5: =SUM(F12,F19,F26,F34) -> 1,831 €
A7: Admisiones
A8: Calculado | B8: Real | E8: Calculado | F8: Real
A9: 300 € | B9: 278 € | C9: Adultos @ | D9: 5 € | E9: =A9*D9 -> 1,500 € | F9: =B9*D9 -> 1,390 €
A10: 197 € | B10: 195 € | C10: Niños @ | D10: 2 € | E10: =A10*D10 -> 394 € | F10: =B10*D10 -> 390 €
A11: 42 € | B11: 51 € | C11: Otros @ | D11: 1 € | E11: =A11*D11 -> 42 € | F11: =B11*D11 -> 51 €
E12: =SUM(E9:E11) -> 1,936 € | F12: =SUM(F9:F11) -> 1,831 €
A14: Anuncios en programas
A15: Calculado | B15: Real | E15: Calculado | F15: Real
C16: Portadas @ | E16: =A16*D16 -> 0 € | F16: =B16*D16 -> 0 €
C17: Media página @ | E17: =A17*D17 -> 0 € | F17: =B17*D17 -> 0 €
C18: Un cuarto de página @ | E18: =A18*D18 -> 0 € | F18: =B18*D18 -> 0 €
E19: =SUM(E16:E18) -> 0 € | F19: =SUM(F16:F18) -> 0 €
A21: Exhibidores/proveedores
A22: Calculado | B22: Real | E22: Calculado | F22: Real
C23: Cabinas grandes @ | E23: =A23*D23 -> 0 € | F23: =B23*D23 -> 0 €
C24: Cabinas normales @ | E24: =A24*D24 -> 0 € | F24: =B24*D24 -> 0 €
C25: Cabinas pequeñas @ | E25: =A25*D25 -> 0 € | F25: =B25*D25 -> 0 €
E26: =SUM(E23:E25) -> 0 € | F26: =SUM(F23:F25) -> 0 €
A28: Venta de artículos
A29: Calculado | B29: Real | E29: Calculado | F29: Real
C30: Artículos @ | E30: =A30*D30 -> 0 € | F30: =B30*D30 -> 0 €
C31: Artículos @ | E31: =A31*D31 -> 0 € | F31: =B31*D31 -> 0 €
C32: Artículos @ | E32: =A32*D32 -> 0 € | F32: =B32*D32 -> 0 €
C33: Artículos @ | E33: =A33*D33 -> 0 € | F33: =B33*D33 -> 0 €
E34: =SUM(E30:E33) -> 0 € | F34: =SUM(F30:F33) -> 0 €

Sheet Resumen
A1: =Gastos!A1 -> Presupuesto del evento [Nombre del evento]
A2: > Resumen de beneficios y pérdidas
B4: Calculado | C4: Real
A5: Ingresos totales | B5: =Ingresos!E5 -> 1,936 € | C5: =Ingresos!F5 -> 1,831 €
A6: Gastos totales | B6: =Gastos!F5 -> 1,145 € | C6: =Gastos!G5 -> 395 €
A7: Beneficio total (o pérdidas) | B7: =B5-B6 -> 791 € | C7: =C5-C6 -> 1,436 €
